Workbook

Sheet Main
B2: โปรแกรมคำนวณต้นทุนการขนส่งสินค้า
B3: Version 1.2.2 (อยู่ระหว่างการพัฒนาและทดลองใช้)
B7: ประเภทรถ | C7: รถกึ่งพ่วง 18 ล้อ ยี่ห้อ E น้ำมันดีเซล | J7: ค่าเบื้องต้นจากฐานข้อมูลรถ
C10: น้ำหนักบรรทุก | F10: 25 | G10: ตัน | J10: (1) เลือกประเภทรถบรรทุก
C11: ราคาเชื้อเพลิง | F11: 23.89 | G11: บาท/ลิตร
C12: อัตราดอกเบี้ย | F12: 0.06 | G12: ต่อปี
C13: ระยะทางเดินทางที่ทำการวิเคราะห์ | F13: 700 | G13: กิโลเมตร | J13: (2) เลือกประเภทเชื้อเพลิง
B14: ข้อมูลผู้ประกอบการ
C19: จำนวนรถบรรทุก | F19: 10 | G19: คัน
C20: จำนวนพนักงานสำนักงาน | F20: 3 | G20: คน
C21: ค่าใช้จ่ายสำนักงาน สาธารณูปโภค | F21: 30000 | G21: บาท/เดือน
B22: ข้อมูลรถบรรทุก
C27: อายุการใช้งานของรถ โดยเฉลี่ย | F27: 10 | G27: ปี
C28: อายุการใช้งานของหางพ่วง โดยเฉลี่ย | F28: 10 | G28: ปี
C29: อัตราการใช้เชื้อเพลิง | F29: 2.749583333 | G29: กม./ลิตร, กม./กก.
C31: ระยะทางการใช้งานรถ เฉลี่ยต่อคัน | F31: 123000 | G31: กม./ปี
B32: ข้อมูลพนักงาน
C37: ค่าจ้างพนักงานสำนักงาน ต่อคน | F37: 15000 | G37: บาท/เดือน
C38: ค่าจ้างพนักงานขับรถ ต่อคน | F38: 12000 | G38: บาท/เดือน
C39: ค่าเบี้ยเลี้ยง โบนัส พนักงานขับรถ ต่อคน | F39: 10000 | G39: บาท/เดือน
C40: ค่าจ้างพนักงานผู้ช่วย ต่อคน | F40: 8000 | G40: บาท/เดือน
B41: ข้อมูลทางการเงินของรถบรรทุก
B46: กรณีซื้อเงินสด | C46: ค่ารถบรรทุก | F46: 3500000 | G46: บาท/คัน
C47: ค่าหางพ่วง | F47: 700000 | G47: บาท/คัน
C48: มูลค่าซากของรถ | F48: 700000 | G48: บาท/คัน
C49: มูลค่าซากของหางพ่วง | F49: 140000 | G49: บาท/คัน
B50: กรณีผ่อนชำระ | C50: เงินดาวน์รถบรรทุก ต่อคัน | G50: บาท
C51: ค่างวดผ่อนรถบรรทุก ต่อคัน | G51: บาท/เดือน
C52: จำนวนเดือนผ่อนชำระ | G52: เดือน
C53: เงินดาวน์หางพ่วง ต่อคัน | G53: บาท
C54: ค่างวดผ่อนหางพ่วง ต่อคัน | G54: บาท/เดือน
C55: จำนวนเดือนผ่อนชำระ | G55: เดือน
C56: มูลค่าซากของรถ | F56: 700000 | G56: บาท
C57: มูลค่าซากของหางพ่วง | F57: 140000 | G57: บาท
C59: ค่าภาษีประจำปี เฉลี่ยต่อคัน ต่อปี | F59: 8043.333333 | G59: บาท/ปี
C60: ค่าตรวจสภาพรถ เฉลี่ยต่อคัน ต่อปี | F60: 1745.833333 | G60: บาท/ปี
C61: ค่าประกันตัวรถ เฉลี่ยต่อคัน ต่อปี | F61: 95666.66667 | G61: บาท/ปี
C62: ค่าประกันสินค้า เฉลี่ยต่อคัน ต่อปี | F62: 26023.80952 | G62: บาท/ปี
C63: ค่าผ่านทางพิเศษ เฉลี่ยต่อคัน ต่อปี | F63: 33771.66667 | G63: บาท/ปี
C64: ค่าผ่านด่านข้ามแดน ต่อคัน ต่อปี | F64: 91337.5 | G64: บาท/ปี
C65: ค่าใช้จ่ายไม่มีใบเสร็จ เฉลี่ยต่อคัน ต่อปี | F65: 30664.58333 | G65: บาท/ปี
C66: ค่าใช้จ่ายอื่นๆ เฉลี่ยต่อคัน ต่อปี | F66: 0 | G66: บาท/ปี
C68: ความถี่เปลี่ยนน้ำมันหล่อลื่น | F68: 23020.83333 | G68: กม./ครั้ง
C69: ค่าใช้จ่ายเปลี่ยนถ่ายน้ำมันหล่อลื่น ต่อครั้ง | F69: 12000 | G69: บาท/ครั้ง
C70: ค่าซ่อมรถเฉลี่ย ต่อคัน ต่อปี | F70: 62208.33333 | G70: บาท/ปี
C71: ค่าบำรุงรักษาอื่นๆ ต่อคัน ต่อปี | F71: 40000 | G71: บาท/ปี
C72: ความถี่เปลี่ยน ยางรถบรรทุก | F72: 119000 | G72: กม./ครั้ง
C73: ความถี่การเปลี่ยน ยางหางพ่วง | F73: 113000 | G73: กม./ครั้ง | I73: โครงการศึกษาต้นทุนการขนส่งและกระจายสินค้า เพื่อรองรับการพัฒนาสถานีขนส่งสินค้าทั่วประเทศ ดำเนินการโดย คณะวิศวกรรมศาสตร์ มหาวิทยาลัยเกษตรศาสตร์
C74: ค่าเปลี่ยนยางรถบรรทุก ครั้งละ | F74: 76972.91667 | G74: บาท
C75: ค่าเปลี่ยนยางหางพ่วง ครั้งละ | F75: 74997.91667 | G75: บาท

Sheet Result
B2: ผลการคำนวณต้นทุนการขนส่งสินค้า
C7: ประเภทรถ/เชื้อเพลิง | D7: รถกึ่งพ่วง 18 ล้อ ยี่ห้อ E น้ำมันดีเซล
C9: รายการ | D9: ต้นทุน (บาท/กม.) | F9: สัดส่วน | H9: โครงสร้างต้นทุนการขนส่ง
H10: ค่าใช้จ่าย (บาท) | I10: สัดส่วน (%)
C11: ค่ารถและเครื่องมือ | D11: 3.96097561 | F11: 0.185906716 | H11: 2772.682927 | I11: 0.2087383348
C12: ค่าทะเบียน | D12: 0.06539295393 | F12: 0.003069190652 | H12: 45.77506775 | I12: 0.003446124808
C13: ค่าตรวจสภาพรถ | D13: 0.01419376694 | F13: 0.0006661784518 | H13: 9.935636856 | I13: 0.0007479933146
C14: ค่าประกันภัย | D14: 0.989353465 | F14: 0.0464348867 | H14: 692.5474255 | I14: 0.05213765879
C15: ค่าพนักงานขับรถและผู้ช่วย | D15: 2.926829268 | F15: 0.1373694946 | H15: 2048.780488 | I15: 0.1542401489
C16: ค่าเชื้อเพลิง | D16: 8.68858918 | F16: 0.4077952607 | H16: 6082.012426 | I16: 0.457877507
C17: ค่ายาง | D17: 1.31052961 | F17: 0.06150915331 | H17: 458.6853635 | I17: 0.03453161487
C18: ค่าน้ำมันหล่อลื่น | D18: 0.5212669683 | F18: 0.02446544483 | H18: 182.4434389 | I18: 0.01373505036
C19: ค่าซ่อมรถและบำรุงรักษา | D19: 0.8309620596 | F19: 0.03900085304 | H19: 290.8367209 | I19: 0.02189531743
C20: ค่าผ่านทางพิเศษ | D20: 0.2745663957 | F20: 0.01288665773 | H20: 96.09823848 | I20: 0.007234648465
C21: ค่าผ่านด่านข้ามแดน | D21: 0.7425813008 | F21: 0.03485273948 | H21: 259.9034553 | I21: 0.01956654111
C22: ค่าใช้จ่ายไม่มีใบเสร็จ | D22: 0.2493055556 | F22: 0.01170105087 | H22: 87.25694444 | I22: 0.006569041526
C23: ค่าใช้จ่ายอื่น ๆ | D23: 0 | F23: 0 | H23: 0 | I23: 0
C24: ค่าใช้จ่ายสำนักงาน | D24: 0.7317073171 | F24: 0.03434237365 | H24: 256.097561 | I24: 0.01928001861
C25: รวม | D25: 21.30625345 | F25: 1 | H25: 13283.05569 | I25: 1
C41: ต้นทุนการขนส่ง (ขาเดียว) | D41: 13283.05569 | E41: บาท | F41: 18.97579385 | G41: บาท/กม. | H41: 0.7590317539 | I41: บาท/ตัน-กม.

Sheet DefaultData
A1: รายการ | C1: รถกึ่งพ่วง 18 ล้อ | D1: รถกึ่งพ่วง 18 ล้อ | E1: รถกึ่งพ่วง 18 ล้อ | F1: รถกึ่งพ่วง 18 ล้อ | G1: รถ 10 ล้อ | H1: รถ 10 ล้อ | I1: รถ 4 ล้อ | J1: รถ 4 ล้อ | K1: รถประเภทที่ 9 | L1: รถประเภทที่ 10 | M1: รถประเภทที่ 11 | N1: รถประเภทที่ 12 | O1: รถประเภทที่ 13 | P1: รถประเภทที่ 14 | Q1: รถประเภทที่ 15 | R1: รถประเภทที่ 16 | S1: รถประเภทที่ 17 | T1: รถประเภทที่ 18 | U1: รถประเภทที่ 19 | V1: รถประเภทที่ 20
A2: ยี่ห้อ | B2: หน่วย | C2: ยี่ห้อ J | D2: ยี่ห้อ J | E2: ยี่ห้อ E | F2: ยี่ห้อ E | G2: ยี่ห้อ J | H2: ยี่ห้อ J | I2: ยี่ห้อ J | J2: ยี่ห้อ J
A3: น้ำหนักบรรทุก | B3: ตัน | C3: 25 | D3: 25 | E3: 25 | F3: 25 | G3: 20 | H3: 20 | I3: 1.2 | J3: 1.2
A4: เชื้อเพลิง
A6: อายุการใช้งานของรถ โดยเฉลี่ย | B6: ปี | C6: 8 | D6: 8 | E6: 10 | F6: 8 | G6: 8 | H6: 8 | I6: 8 | J6: 8
A7: อายุการใช้งานของหางพ่วง โดยเฉลี่ย | B7: ปี | C7: 10 | D7: 10 | E7: 10 | F7: 10
A8: อัตราการใช้เชื้อเพลิง กรณีบรรทุกสินค้า | B8: กม./ลิตร, กม./กก. | C8: 2.749583333 | D8: 4.5 | E8: 2.749583333 | F8: 4.5 | G8: 3.3 | H8: 4.8 | I8: 10.5 | J8: 5
A9: อัตราการใช้เชื้อเพลิง กรณีรถเปล่า | B9: กม./ลิตร, กม./กก. | C9: 3.344583333 | D9: 4.8 | E9: 3.344583333 | F9: 4.8 | G9: 3.8 | H9: 5 | I9: 10.5 | J9: 5.5
A10: ระยะทางที่ใช้งานเฉลี่ย ต่อคันต่อปี | B10: กม./ปี | C10: 123000 | D10: 123000 | E10: 123000 | F10: 123000 | G10: 123000 | H10: 123000 | I10: 123000 | J10: 123000
A12: กรณีซื้อเงินสด - ค่ารถบรรทุก ต่อคัน | B12: บาท/คัน | C12: 2800000 | D12: 2800000 | E12: 3500000 | F12: 3500000 | G12: 2800000 | H12: 2800000 | I12: 800000 | J12: 800000
A13: กรณีซื้อเงินสด - ค่าหางพ่วง ต่อคัน | B13: บาท/คัน | C13: 700000 | D13: 700000 | E13: 700000 | F13: 700000
A14: กรณีซื้อเงินสด - มูลค่าซากของรถ ต่อคัน | B14: บาท/คัน | C14: =C12*0.2 -> 560000 | D14: =D12*0.2 -> 560000 | E14: 700000 | F14: 700000 | G14: 560000 | H14: 560000 | I14: 160000 | J14: 160000
A15: กรณีซื้อเงินสด - มูลค่าซากของหางพ่วง ต่อคัน | B15: บาท/คัน | C15: =C13*0.2 -> 140000 | D15: =D13*0.2 -> 140000 | E15: 140000 | F15: 140000
A16: กรณีผ่อนชำระ - มูลค่าซากของรถ ต่อคัน | B16: บาท | C16: =C12*0.2 -> 560000 | D16: =D12*0.2 -> 560000 | E16: 700000 | F16: 700000
A17: กรณีผ่อนชำระ - มูลค่าซากของหางพ่วง ต่อคัน | B17: บาท | C17: =C13*0.2 -> 140000 | D17: =D13*0.2 -> 140000 | E17: 140000 | F17: 140000
A19: ค่าภาษีประจำปี ต่อคัน | B19: บาท/ปี | C19: 8043.333333 | D19: 8043.333333 | E19: 8043.333333 | F19: 8043.333333 | G19: 8043.333333 | H19: 8043.333333 | I19: 8000 | J19: 8000
A20: ค่าตรวจสภาพรถ เฉลี่ยต่อคัน | B20: บาท/ปี | C20: 1745.833333 | D20: 1745.833333 | E20: 1745.833333 | F20: 1745.833333 | G20: 1745.833333 | H20: 1745.833333 | I20: 2000 | J20: 2000
A21: ค่าประกันตัวรถ เฉลี่ยต่อคัน | B21: บาท/ปี | C21: 95666.66667 | D21: 95666.66667 | E21: 95666.66667 | F21: 95666.66667 | G21: 95666.66667 | H21: 95666.66667 | I21: 16000 | J21: 16000
A22: ค่าประกันสินค้า เฉลี่ยต่อคัน | B22: บาท/ปี | C22: 26023.80952 | D22: 26023.80952 | E22: 26023.80952 | F22: 26023.80952 | G22: 26023.80952 | H22: 26023.80952 | I22: 7000 | J22: 7000
A23: ค่าผ่านทางพิเศษ เฉลี่ยต่อคัน | B23: บาท/ปี | C23: 33771.66667 | D23: 33771.66667 | E23: 33771.66667 | F23: 33771.66667 | G23: 33771.66667 | H23: 33771.66667 | I23: 12500 | J23: 12500
A24: ค่าผ่านด่านข้ามแดน รวมทั้งหมดต่อคัน | B24: บาท/ปี | C24: 91337.5 | D24: 91337.5 | E24: 91337.5 | F24: 91337.5 | G24: 91337.5 | H24: 91337.5 | I24: 0 | J24: 0
A25: ค่าใช้จ่ายไม่มีใบเสร็จ เฉลี่ยต่อคัน | B25: บาท/ปี | C25: 30664.58333 | D25: 30664.58333 | E25: 30664.58333 | F25: 30664.58333 | G25: 30664.58333 | H25: 30664.58333 | I25: 12000 | J25: 12000
A26: ค่าใช้จ่ายอื่น ๆ เฉลี่ยต่อคัน | B26: บาท/ปี | C26: 0 | D26: 0 | E26: 0 | F26: 0 | G26: 0 | H26: 0 | I26: 0 | J26: 0
A28: ความถี่เปลี่ยนน้ำมันหล่อลื่น | B28: กม./ครั้ง | C28: 23020.83333 | D28: 23020.83333 | E28: 23020.83333 | F28: 23020.83333 | G28: 23020.83333 | H28: 23020.83333 | I28: 10000 | J28: 10000
A29: ค่าใช้จ่ายเปลี่ยนน้ำมันหล่อลื่น ครั้งละ | B29: บาท | C29: 12000 | D29: 12000 | E29: 12000 | F29: 12000 | G29: 10000 | H29: 10000 | I29: 1500 | J29: 1500
A30: ค่าซ่อมรถเฉลี่ย ต่อคัน | B30: บาท/ปี | C30: 62208.33333 | D30: 62208.33333 | E30: 62208.33333 | F30: 62208.33333 | G30: 57500 | H30: 57500 | I30: 40000 | J30: 30000
A31: ค่าบำรุงรักษาอื่นๆ ต่อคัน | B31: บาท/ปี | C31: 53541.66667 | D31: 53541.66667 | E31: 40000 | F31: 53541.66667 | G31: 51000 | H31: 40000 | I31: 20000 | J31: 15000
A32: ความถี่เปลี่ยน ยางรถบรรทุก | B32: กม./ครั้ง | C32: 119000 | D32: 119000 | E32: 119000 | F32: 119000 | G32: 112000 | H32: 112000 | I32: 70000 | J32: 70000
A33: ความถี่การเปลี่ยน ยางหางพ่วง | B33: กม./ครั้ง | C33: 113000 | D33: 113000 | E33: 113000 | F33: 113000 | G33: 112708.3333 | H33: 112708.3333 | I33: 0 | J33: 0
A34: ค่าเปลี่ยน ยางรถบรรทุก ครั้งละ | B34: บาท | C34: 76972.91667 | D34: 76972.91667 | E34: 76972.91667 | F34: 76972.91667 | G34: 45000 | H34: 45000 | I34: 10000 | J34: 10000
A35: ค่าเปลี่ยน ยางหางพ่วง ครั้งละ | B35: บาท | C35: 74997.91667 | D35: 74997.91667 | E35: 74997.91667 | F35: 74997.91667 | G35: 74997.91667 | H35: 74997.91667 | I35: 0 | J35: 0

Sheet Compute
B2: รายการคำนวณ
B7: เที่ยวเดินทางที่ทำการวิเคราะห์ | F7: รายการ | G7: ต้นทุน/กม. | H7: สัดส่วน | I7: เที่ยวเดินทาง
B8: ระยะทาง | C8: =Main!F13 -> 700 | D8: กม. | I8: ต้นทุน (บาท) | J8: สัดส่วน
F9: ค่ารถและเครื่องมือ | G9: =(C19+C24)/(Main!F31) -> 3.96097561 | H9: =G9/G$23 -> 0.185906716 | I9: =$G9*$C$8 -> 2772.682927 | J9: =I9/$I$23 -> 0.2087383348
B10: ต้นทุนคงที่ | F10: ค่าทะเบียน | G10: =C36 -> 0.06539295393 | H10: 0.003069190652 | I10: =$G10*$C$8 -> 45.77506775 | J10: 0.003446124808
B11: ค่ารถต่อปี กรณีเงินสด | F11: ค่าตรวจสภาพรถ | G11: =C37 -> 0.01419376694 | H11: 0.0006661784518 | I11: =$G11*$C$8 -> 9.935636856 | J11: 0.0007479933146
B12: Depreciation | F12: ค่าประกันภัย | G12: =C38+C39 -> 0.989353465 | H12: 0.0464348867 | I12: =$G12*$C$8 -> 692.5474255 | J12: 0.05213765879
B13: รถบรรทุก | C13: =(Main!F46-Main!F48)/Main!F27 -> 280000 | D13: บาท/ปี | F13: ค่าพนักงานขับรถและผู้ช่วย | G13: =SUM(C31:C33)/Main!F31 -> 2.926829268 | H13: 0.1373694946 | I13: =G13*Main!$F$13 -> 2048.780488 | J13: 0.1542401489
B14: หางพ่วง | C14: =IF(OR(Main!F47=0,Main!F28=0),0,(Main!F47-Main!F49)/Main!F28) -> 56000 | D14: บาท/ปี | F14: ค่าเชื้อเพลิง | G14: =C44 -> 8.68858918 | H14: 0.4077952607 | I14: =G14*Main!$F$13 -> 6082.012426 | J14: 0.457877507
B15: ROI | F15: ค่ายาง | G15: =$C46+$C47 -> 1.31052961 | H15: 0.06150915331 | I15: =G15*$C$8/2 -> 458.6853635 | J15: 0.03453161487
B16: รถบรรทุก | C16: =((Main!F46-Main!F48)/2+Main!F48)*Main!$F$12 -> 126000 | D16: บาท/ปี | F16: ค่าน้ำมันหล่อลื่น | G16: =$C48 -> 0.5212669683 | H16: 0.02446544483 | I16: 182.4434389 | J16: 0.01373505036
B17: หางพ่วง | C17: =((Main!F47-Main!F49)/2+Main!F49)*Main!$F$12 -> 25200 | D17: บาท/ปี | F17: ค่าซ่อมรถและบำรุงรักษา | G17: =C49+C50 -> 0.8309620596 | H17: 0.03900085304 | I17: 290.8367209 | J17: 0.02189531743
F18: ค่าผ่านทางพิเศษ | G18: =$C51 -> 0.2745663957 | H18: 0.01288665773 | I18: 96.09823848 | J18: 0.007234648465
B19: รวม | C19: =(C13+C14)+(C16+C17) -> 487200 | D19: บาท/ปี | F19: ค่าผ่านด่านข้ามแดน | G19: =C52 -> 0.7425813008 | H19: 0.03485273948 | I19: 259.9034553 | J19: 0.01956654111
F20: ค่าใช้จ่ายไม่มีใบเสร็จ | G20: =C53 -> 0.2493055556 | H20: 0.01170105087 | I20: 87.25694444 | J20: 0.006569041526
B21: ค่ารถต่อปี กรณีเช่าซื้อ | F21: ค่าใช้จ่ายอื่น ๆ | G21: =C54 -> 0 | H21: 0 | I21: 0 | J21: 0
B22: รถบรรทุก | C22: =IF(Main!F50<>0,(Main!F50-PV(Main!F$12/12,Main!F52,Main!F51)-Main!F56)/Main!F27,0) -> 0 | D22: บาท/ปี | F22: ค่าใช้จ่ายสำนักงาน | G22: =(C27+C28)/Main!F31 -> 0.7317073171 | H22: 0.03434237365 | I22: 256.097561 | J22: 0.01928001861
B23: หางพ่วง | C23: =IF(Main!F53<>0,(Main!F53-PV(Main!F$12/12,Main!F55,Main!F54)-Main!F57)/Main!F28,0) -> 0 | D23: บาท/ปี | F23: รวม | G23: =SUM(G9:G22) -> 21.30625345 | H23: 1 | I23: 13283.05569 | J23: 1
B24: รวม | C24: =C22+C23 -> 0 | D24: บาท/ปี
F25: สรุปต้นทุนการขนส่งเที่ยวที่ทำการวิเคราะห์ | I25: =I23 -> 13283.05569 | J25: บาท
B26: ค่าใช้จ่ายสำนักงาน | F26: (เที่ยวเดียว จากจุด A ไปจุด B) | I26: =I25/Main!$F$13 -> 18.97579385 | J26: บาท/กม.
B27: ค่าจ้างพนักงานสำนักงาน | C27: =Main!F37*Main!F20*12/Main!F19 -> 54000 | D27: บาท/คัน/ปี | I27: =I26/Main!$F$10 -> 0.7590317539 | J27: บาท/ตัน-กม.
B28: ค่าเช่าสำนักงาน | C28: =Main!F21*12/Main!F19 -> 36000 | D28: บาท/คัน/ปี
B30: ค่าพนักงานขับรถและผู้ช่วย
B31: ค่าจ้างพนักงานขับรถ | C31: =Main!F38*12 -> 144000 | D31: บาท/ปี
B32: ค่าเบี้ยเลี้ยง | C32: =Main!F39*12 -> 120000 | D32: บาท/ปี
B33: ค่าจ้างผู้ช่วย | C33: =Main!F40*12 -> 96000 | D33: บาท/ปี
B35: ค่าทะเบียนและประกันภัยของรถ
B36: ค่าทะเบียน | C36: =Main!F59/Main!$F$31 -> 0.06539295393 | D36: บาท/กม.
B37: ค่าตรวจสภาพรถ | C37: =Main!F60/Main!$F$31 -> 0.01419376694 | D37: บาท/กม.
B38: ค่าประกันภัยตัวรถ | C38: =Main!F61/Main!$F$31 -> 0.7777777778 | D38: บาท/กม.
B39: ค่าประกันภัยสินค้า | C39: =Main!F62/Main!$F$31 -> 0.2115756872 | D39: บาท/กม.
B41: ต้นทุนแปรผัน
B43: ค่าเชื้อเพลิง
B44: ค่าเชื้อเพลิง (มีสินค้า) | C44: =Main!$F$11/Main!F29 -> 8.68858918 | D44: บาท/กม.
B46: ค่ายาง รถบรรทุก | C46: =Main!F74/Main!F72 -> 0.6468312325 | D46: บาท/กม.
B47: ค่ายาง หางพ่วง | C47: =IF(AND(Main!F73<>0,Main!F75<>0),Main!F75/Main!F73,0) -> 0.6636983776 | D47: บาท/กม.
B48: ค่าเปลี่ยนถ่ายน้ำมันหล่อลื่น | C48: =Main!F69/Main!F68 -> 0.5212669683 | D48: บาท/กม.
B49: ค่าซ่อมรถ | C49: =Main!F70/Main!F31 -> 0.5057588076 | D49: บาท/กม.
B50: ค่าบำรุงรักษา | C50: =Main!F71/Main!F31 -> 0.325203252 | D50: บาท/กม.
B51: ค่าผ่านทางพิเศษ | C51: =Main!F63/Main!$F$31 -> 0.2745663957 | D51: บาท/กม.
B52: ค่าผ่านด่านข้ามแดน | C52: =Main!F64/Main!$F$31 -> 0.7425813008 | D52: บาท/กม.
B53: ค่าใช้จ่ายไม่มีใบเสร็จ | C53: =Main!F65/Main!$F$31 -> 0.2493055556 | D53: บาท/กม.
B54: ค่าใช้จ่ายอื่น ๆ | C54: =Main!F66/Main!$F$31 -> 0 | D54: บาท/กม.

Sheet FuelPrice
B1: CNG | C1: ดีเซล
A2: ราคาต่อหน่วย | B2: 13.03 | C2: 23.89

Sheet Database (hidden)
A1: จำนวนประเภทข้อมูล | B1: 20 | D1: EditStatus | E1: FALSE
A2: รายการ | B2: ยี่ห้อ | D2: น้ำมันดีเซล
B3: หน่วย | D3: ก๊าซ CNG
A4: รถกึ่งพ่วง 18 ล้อ | B4: ยี่ห้อ J | C4: รถกึ่งพ่วง 18 ล้อ, ยี่ห้อ J | D4: กรณีซื้อเงินสด
A5: รถกึ่งพ่วง 18 ล้อ | B5: ยี่ห้อ J | C5: รถกึ่งพ่วง 18 ล้อ, ยี่ห้อ E | D5: กรณีผ่อนชำระ
A6: รถกึ่งพ่วง 18 ล้อ | B6: ยี่ห้อ E | C6: รถ 10 ล้อ, ยี่ห้อ J | D6: ไม่สามารถค้นหาข้อมูลดังกล่าวได้ ซึ่งอาจเกิดจากสาเหตุดังต่อไปนี้
A7: รถกึ่งพ่วง 18 ล้อ | B7: ยี่ห้อ E | C7: รถ 4 ล้อ, ยี่ห้อ J | D7: กรุณากรอกเฉพาะข้อมูลตัวเลขเท่านั้นค่ะ
A8: รถ 10 ล้อ | B8: ยี่ห้อ J | C8: รถประเภทที่ 9, | D8: - ข้อมูลเชื้อเพลิงของประเภทรถดังกล่าวไม่ตรงกับเชื้อเพลิงที่เลือก
A9: รถ 10 ล้อ | B9: ยี่ห้อ J | C9: รถประเภทที่ 10, | D9: - มีการแก้ไขข้อมูลประเภทรถ หรือยี่ห้อรถ ที่ยังไม่ได้ผ่านการกดปุ่ม 'ยืนยันการแก้ไขชื่อรายการประเภทรถ'
A10: รถ 4 ล้อ | B10: ยี่ห้อ J | C10: รถประเภทที่ 11, | D10: ต้องการล้างค่าข้อมูลทั้งหมดในหน้า Main ใช่หรือไม่ ?
A11: รถ 4 ล้อ | B11: ยี่ห้อ J | C11: รถประเภทที่ 12,
A12: รถประเภทที่ 9 | C12: รถประเภทที่ 13,
A13: รถประเภทที่ 10 | C13: รถประเภทที่ 14,
A14: รถประเภทที่ 11 | C14: รถประเภทที่ 15,
A15: รถประเภทที่ 12 | C15: รถประเภทที่ 16,
A16: รถประเภทที่ 13 | C16: รถประเภทที่ 17,
A17: รถประเภทที่ 14 | C17: รถประเภทที่ 18,
A18: รถประเภทที่ 15 | C18: รถประเภทที่ 19,
A19: รถประเภทที่ 16 | C19: รถประเภทที่ 20,
A20: รถประเภทที่ 17
A21: รถประเภทที่ 18
A22: รถประเภทที่ 19
A23: รถประเภทที่ 20
